Cogmind - Beta 17.1 @@@ ROGUE MODE // 2026.09.10 @ 17:54:28 Player: Nika Jay Result: Destroyed by S-10 Pest with Light Assault Rifle Performance ------------- Evolutions (0) 0 Regions Visited (4) 800 Robots Destroyed (23) 115 Value Destroyed (506) 506 Prototype IDs (0) 0 Alien Tech Used (0) 0 Bonus (0) 0 TOTAL SCORE: 1421 Bonus ------- None Cogmind --------- Core Integrity 0/250 Matter 256/300 Energy 38/100 System Corruption 1% Temperature Hot (264) Movement Core (200) Ox3 Location -9/Mines Parts ------- > --- POWER (1) -------- (None) > --- PROPULSION (2) --- (None) > --- UTILITY (2) ------ Medium Storage Unit > --- WEAPON (2) ------- Light Assault Rifle Light Assault Rifle > --- INVENTORY (10) --- Aluminum Leg Aluminum Leg Aluminum Leg Seismic Detector Seismic Detector Particle Gun Light Assault Rifle Peak State ------------ > --- POWER ------------ Light Ion Engine > --- PROPULSION ------- Aluminum Leg Aluminum Leg > --- UTILITY ---------- Small Storage Unit Seismic Detector > --- WEAPON ----------- Particle Gun Light Assault Rifle > --- INVENTORY -------- Aluminum Leg Aluminum Leg Aluminum Leg Seismic Detector Seismic Detector Light Assault Rifle Light Assault Rifle Light Assault Rifle [Rating: 8] Favorites ----------- Power Light Ion Engine Engine Light Ion Engine Propulsion Aluminum Leg Leg Aluminum Leg Utility Seismic Detector Device Seismic Detector Storage Small Storage Unit Weapon Light Assault Rifle Energy Gun Particle Gun Ballistic Gun Light Assault Rifle Build | -11 -10 -10 -10 -9 ------- Run | Yrd Mat Min Exi Min Slots Evolved . | . . . . . Power . | . . . . . Propulsion . | . . . . . Utility . | . . . . . Weapon . | . . . . . Parts Attached 22 | 7 4 7 1 3 Power 3 | 1 1 1 . . Engine 3 | 1 1 1 . . Core . | . . . . . Reactor . | . . . . . Propulsion 6 | 2 1 3 . . Treads . | . . . . . Leg 6 | 2 1 3 . . Wheel . | . . . . . Hover . | . . . . . Flight . | . . . . . Utility 4 | 2 1 . 1 . Device 2 | 1 1 . . . Storage 2 | 1 . . 1 . Processor . | . . . . . Hackware . | . . . . . Protection . | . . . . . Artifact . | . . . . . Weapon 9 | 2 1 3 . 3 Energy Gun 2 | 1 . 1 . . Energy Cannon . | . . . . . Ballistic Gun 7 | 1 1 2 . 3 Ballistic Cannon . | . . . . . Launcher . | . . . . . Special Weapon . | . . . . . Impact Weapon . | . . . . . Slashing Weapon . | . . . . . Piercing Weapon . | . . . . . Special Melee Weapon . | . . . . . Unidentified Prototypes . | . . . . . Parts Lost 5 | . . . . 5 Power 1 | . . . . 1 Propulsion 2 | . . . . 2 Utility 1 | . . . . 1 Weapon 1 | . . . . 1 Highest Loss Streak 5 | . . . . 5 To Critical Strikes 1 | . . . . 1 Average Backups 6 | 1 6 8 8 8 Power . | . . . . . Propulsion 2 | . 1 3 3 3 Utility 1 | . 2 2 2 2 Weapon 2 | . 3 3 3 3 Tool/Special . | . . . . . Unused Backups 8 | . 1 2 . 5 Power . | . . . . . Propulsion 5 | . . 2 . 3 Utility 2 | . . . . 2 Weapon 1 | . 1 . . . Tool/Special . | . . . . . Average Slot Usage (%) 88 | . 97 100 73 81 Engine 13 | . 14 14 14 10 Leg 27 | . 28 28 28 24 Device 12 | . 11 14 14 3 Storage 14 | . 14 14 14 14 Energy Gun 2 | . 1 3 1 10 Ballistic Gun 16 | . 26 24 . 17 Peak Build Rating 8 | 7 7 8 8 8 Average Rating 6 | 5 6 7 5 6 On Entrance 6 | . 7 7 8 8 Avg Prop Armor Cover (%) . | . . . . . Naked Turns . | . . . . . Heaviest Build 18 | 11 13 13 18 . Greatest Support 20 | 20 20 20 20 . Greatest Overweight (x) . | . . . . . Average Overweight (x) . | . . . . . Largest Inventory Capacity 10 | 8 8 8 10 10 Average Capacity 8 | 7 8 8 8 10 Most Carried 8 | 3 8 8 8 8 Average Carried 6 | 1 7 8 8 7 Final Capacity 10 | 8 8 8 10 10 Final Carried 8 | 3 8 8 8 7 Class Distribution -------------------- 58% | Scavenger-Mutant 41% | Mutant Dominant Class ---------------- Mutant | -10/Materials Scavenger-Mutant | -10/Mines Scavenger-Mutant | -10/Exiles Scavenger-Mutant | -9/Mines Resources | -11 -10 -10 -10 -9 ----------- Run | Yrd Mat Min Exi Min Matter Collected 517 | 298 94 125 . . Remotely . | . . . . . Salvage Created 755 | 207 235 214 . 99 Parts 56 | 21 12 17 . 6 Haulers Intercepted . | . . . . . Recyclers Shooed 3 | . 2 1 . . Parts Field Recycled . | . . . . . Retrieved Matter . | . . . . . Parts Self-Destructed . | . . . . . Prevented . | . . . . . Parts Restored . | . . . . . Kills | -11 -10 -10 -10 -9 ------- Run | Yrd Mat Min Exi Min Combat Hostiles Destroyed 14 | . 5 7 . 2 Guns 14 | . 5 7 . 2 Classes Destroyed 5 | 3 1 1 . . Worker 2 | 2 . . . . Tunneler 6 | 5 1 . . . Recycler 1 | 1 . . . . Swarmer 3 | . . 3 . . Grunt 11 | . 5 4 . 2 Best Kill Streak 3 | 3 2 3 . 2 Combat Bots Only 3 | . 1 3 . 2 Max Kills in Single Turn 1 | 1 1 1 . 1 Gunslinging . | . . . . . Exploded . | . . . . . Melee . | . . . . . Uniques/NPCs Destroyed . | . . . . . Combat | -11 -10 -10 -10 -9 -------- Run | Yrd Mat Min Exi Min Hostile Shots Fired 118 | . 35 44 . 39 Missed 27 | . 14 8 . 5 Hits 91 | . 21 36 . 34 Projectile 91 | . 21 36 . 34 Critical Strikes 5 | . . 1 . 4 Damage Taken 1092 | . 249 416 . 427 Core 254 | . 14 119 . 121 Absorbed by Shields . | . . . . . Core Remaining (%) 100 | 100 . . . . Volleys Fired 93 | 28 32 25 . 8 Largest 2 | 2 2 2 . 2 Hottest 85 | 60 40 40 . 85 Shots Fired 185 | 55 64 50 . 16 Gun 185 | 55 64 50 . 16 Cannon . | . . . . . Launcher . | . . . . . Special . | . . . . . Kinetic 151 | 28 64 50 . 9 Thermal 34 | 27 . . . 7 Explosive . | . . . . . Electromagnetic . | . . . . . Robot Hit Streak 10 | 8 10 7 . 8 Robot Miss Streak 4 | 2 2 4 . 2 Penetration Max . | . . . . . Secondary Targets 1 | . . . . 1 Max Gunslinging Chain 1 | . . . . 1 Shots Hit Robots 125 | 36 49 30 . 10 Core Hits 55 | 15 17 17 . 6 Critical Kills 2 | . 1 1 . . Critical Parts Destroyed 1 | . 1 . . . Critical Strikes 3 | . 2 1 . . Destroy 3 | . 2 1 . . Melee Attacks . | . . . . . Impact . | . . . . . Slashing . | . . . . . Piercing . | . . . . . Sneak Attacks . | . . . . . Combat Hostiles . | . . . . . Follow-up Attacks . | . . . . . Damage Inflicted 1108 | 339 410 236 . 123 Guns 1092 | 337 400 232 . 123 Cannons . | . . . . . Explosions . | . . . . . Melee . | . . . . . Ramming 16 | 2 10 4 . . Kinetic 808 | 119 400 232 . 57 Thermal 284 | 218 . . . 66 Explosive . | . . . . . Electromagnetic . | . . . . . Impact . | . . . . . Slashing . | . . . . . Piercing . | . . . . . Highest Corruption 1 | . 1 1 1 1 Average Corruption 1 | . 1 1 1 1 Corruption Purged . | . . . . . Corruption Blocked . | . . . . . Effects 6 | . . 3 3 . Message Errors 2 | . . 1 1 . Energy Discharges 2 | . . 1 1 . Data Loss (minor) 1 | . . 1 . . Data Loss (major) 1 | . . . 1 . Overload Shots . | . . . . . Overflow Damage . | . . . . . Projectiles . | . . . . . Explosions . | . . . . . Melee . | . . . . . Knockbacks . | . . . . . Impact . | . . . . . Kinetic . | . . . . . Secondary . | . . . . . Self-Inflicted Damage . | . . . . . Shots . | . . . . . Rammed . | . . . . . Targets Rammed 9 | 1 7 1 . . Kicked 9 | 1 7 1 . . Crushed . | . . . . . Highest Temperature 371 | 80 12 70 . 371 Average Temperature 62 | 37 7 40 . 233 Received Heat Transfer 579 | . 141 222 . 216 Effects 2 | . . . . 2 Interference 1 | . . . . 1 Short Circuit 1 | . . . . 1 Siege Activations . | . . . . . Martial Activations . | . . . . . Shielding Activations . | . . . . . Robots Disrupted . | . . . . . Combat Hostiles . | . . . . . Robots Corrupted . | . . . . . Combat Hostiles . | . . . . . Parts Fried . | . . . . . Impact Corruptions . | . . . . . Robots Melted . | . . . . . Combat Hostiles . | . . . . . Parts Melted . | . . . . . Heat Transferred 648 | 500 . . . 148 Parts Sabotaged . | . . . . . Parts Stolen . | . . . . . Parts Stripped . | . . . . . Power Chain Reactions . | . . . . . Alert | -11 -10 -10 -10 -9 ------- Run | Yrd Mat Min Exi Min Maximum Alert Level . | . . . . . Low Security (%) 100 | 100 100 100 . 100 Level 1 . | . . . . . Level 2 . | . . . . . Level 3 . | . . . . . Level 4 . | . . . . . Level 5 . | . . . . . High Security . | . . . . . Max Security . | . . . . . Peak Influence 95 | 10 95 70 . 40 Initial 17 | . . 17 . . Average 25 | 2 32 29 . 17 Influence Increases 421 | 40 161 170 . 50 Destroy 0b10 Robot/C 280 | . 100 140 . 40 Destroy 0b10 Robot/NC 45 | 40 5 . . . Destroy Leader 60 | . 20 30 . 10 Successful Hack 6 | . 6 . . . Lose Combat Pursuer 30 | . 30 . . . Influence Decreases 421 | 40 116 195 20 50 Entered New Map 48 | . . 28 20 . Time Decay 333 | 40 116 167 . 10 Lost Part 40 | . . . . 40 Squads Dispatched 3 | . 3 . . . Investigation 2 | . 2 . . . Extermination . | . . . . . Reinforcement 1 | . 1 . . . Assault . | . . . . . Garrison . | . . . . . Intercept . | . . . . . Searches Triggered . | . . . . . Construction Impeded . | . . . . . Haulers Reinforced . | . . . . . Active Scanning Responses . | . . . . . Cargo Convoy Interrupts . | . . . . . Stealth | -11 -10 -10 -10 -9 --------- Run | Yrd Mat Min Exi Min Distress Signals 1 | . 1 . . . Communications Jammed . | . . . . . Distress Signals . | . . . . . Times Spotted 25 | . 10 7 . 8 Peak Tracking Total 8 | . 4 3 . 8 Tactical Retreats 2 | . 2 . . . Traps | -11 -10 -10 -10 -9 ------- Run | Yrd Mat Min Exi Min Traps Triggered 1 | . 1 . . . Indirectly . | . . . . . Trap Hack Attempts . | . . . . . Triggered . | . . . . . Disarmed . | . . . . . Reprogrammed . | . . . . . Reused . | . . . . . Traps Extracted . | . . . . . Installed . | . . . . . Triggered . | . . . . . Machines | -11 -10 -10 -10 -9 ---------- Run | Yrd Mat Min Exi Min Machines Disabled . | . . . . . Max in Single Turn . | . . . . . Machines Repaired . | . . . . . Machines Dismantled . | . . . . . Machines Sabotaged . | . . . . . Overloaded Fab Kills . | . . . . . Hacking | -11 -10 -10 -10 -9 --------- Run | Yrd Mat Min Exi Min Machines Accessed 6 | . 4 . 2 . Terminals 4 | . 4 . . . Fabricators . | . . . . . Repair Stations . | . . . . . Recycling Units . | . . . . . Scanalyzers . | . . . . . Garrison Access . | . . . . . Total Hacks 35 | . 11 . 24 . Successful 28 | . 4 . 24 . Failed 7 | . 7 . . . Catastrophic 1 | . 1 . . . Database Lockouts . | . . . . . Manual 6 | . 6 . . . Terminals 11 | . 11 . . . Fabricators . | . . . . . Repair Stations . | . . . . . Recycling Units . | . . . . . Scanalyzers . | . . . . . Garrison Access . | . . . . . Terminal Hacks 25 | . 1 . 24 . Record 24 | . . . 24 . Branch Access Points 1 | . 1 . . . Fabricator Hacks . | . . . . . Repair Station Hacks . | . . . . . Recycling Unit Hacks . | . . . . . Scanalyzer . | . . . . . Garrison Access Hacks . | . . . . . Unauthorized Hacks 3 | . 3 . . . Terminals 3 | . 3 . . . Botnet 2 | . 2 . . . Operators 1 | . 1 . . . Fabricators . | . . . . . Repair Stations . | . . . . . Recycling Units . | . . . . . Scanalyzers . | . . . . . Garrison Access . | . . . . . Data Cores Recovered . | . . . . . Used . | . . . . . Hacking Detections 4 | . 4 . . . Full Trace Events 2 | . 2 . . . Feedback Events 1 | . 1 . . . Corruption 1 | . 1 . . . Feedback Blocked . | . . . . . Robot Schematics Acquired . | . . . . . Robots Built . | . . . . . Authchips . | . . . . . Time . | . . . . . Total Robot Build Rating . | . . . . . Part Schematics Acquired . | . . . . . Parts Built . | . . . . . Authchips . | . . . . . Time . | . . . . . Total Part Build Rating . | . . . . . Part Studies Acquired . | . . . . . Parts Repaired . | . . . . . Time . | . . . . . Parts Recycled . | . . . . . Recycled Matter . | . . . . . Retrieved Matter . | . . . . . Retrieved Components . | . . . . . Parts Scanalyzed . | . . . . . Part Schematics Acquired . | . . . . . Parts Damaged . | . . . . . Bothacking | -11 -10 -10 -10 -9 ------------ Run | Yrd Mat Min Exi Min Used RIF Installer . | . . . . . Robots Hacked . | . . . . . Non-combat . | . . . . . Combat . | . . . . . Robot Hacks Applied . | . . . . . Relay Couplers Released . | . . . . . Fabnet Peak Effective % . | . . . . . Robots Rewired . | . . . . . Allies Hacked . | . . . . . Hacks Repelled . | . . . . . Allies | -11 -10 -10 -10 -9 -------- Run | Yrd Mat Min Exi Min Total Allies . | . . . . . Largest Group . | . . . . . Highest-Rated Group . | . . . . . Highest-Rated Ally . | . . . . . Total Orders . | . . . . . Ally Attacks . | . . . . . Total Damage . | . . . . . Kills . | . . . . . Allies Corrupted . | . . . . . Allies Melted . | . . . . . Intel | -11 -10 -10 -10 -9 ------- Run | Yrd Mat Min Exi Min Active Infowar (turns) 1208 | 46 280 395 486 1 Seismic 1208 | 46 280 395 486 1 Robot Analysis Total . | . . . . . Derelict Logs Recovered . | . . . . . Drone Launches . | . . . . . Drone Recoveries . | . . . . . Exploration | -11 -10 -10 -10 -9 ------------- Run | Yrd Mat Min Exi Min Turns Passed 1431 | 165 361 395 486 24 Spaces Moved 910 | 59 191 259 401 . Core 4 | 4 . . . . Treads . | . . . . . Legs 906 | 55 191 259 401 . Wheels . | . . . . . Hover . | . . . . . Flight . | . . . . . Fastest Speed 50 | 50 120 120 120 . Average Speed 119 | 115 120 120 120 . Slowest Speed 120 | 120 120 120 120 . Overloaded Moves . | . . . . . Propulsion Burnouts . | . . . . . Robots Hopped . | . . . . . Potential Cave-ins . | . . . . . Cave-ins Triggered . | . . . . . Exploration Rate (%) 33 | 4 45 50 65 2 Regions Visited 4 Branch Regions 3 Pre-discovered Areas 1 | . . . 1 . Known Exits Taken 1 | . 1 . . . Unknown Exits Taken 3 | 1 . 1 1 . Scrap Searched . | . . . . . Spaces Dug . | . . . . . Terrain Destroyed . | . . . . . Melee . | . . . . . Projectile . | . . . . . AOE . | . . . . . Terrain Rammed . | . . . . . Walls Destroyed . | . . . . . Machines Disabled . | . . . . . Actions | -11 -10 -10 -10 -9 --------- Run | Yrd Mat Min Exi Min Total 1105 | 103 276 309 406 11 Wait 36 | 6 22 8 . . Move 906 | 58 190 258 400 . Hop . | . . . . . Pick Up 14 | 3 9 2 . . Fast Attach 10 | 7 1 . 2 . Attach 3 | . 2 . . 1 Detach 3 | . 3 . . . Swap 13 | . 3 7 1 2 Drop 18 | . 7 8 3 . Fire 93 | 28 32 25 . 8 Melee . | . . . . . Ram . | . . . . . Kick 9 | 1 7 1 . . Crush . | . . . . . Escape Stasis . | . . . . . Rewire . | . . . . . Trap . | . . . . . Miscellaneous . | . . . . . Route ------- -11/Scrapyard -10/Materials (discovered 3 exits: [*Mat] / *Min x2) -10/Mines (discovered 2 exits: [*Mat] / *Exi) -10/Exiles (discovered 2 exits: [*Min x2]) -9/Mines History --------- Turn | Location | Event 3 | -11/Scrapyard | Discovered new exit (range 16) 166 | -11/Scrapyard | Entered Materials 246 | -10/Materials | Identified exit to Mines 313 | -10/Materials | Build established: Mutant 466 | -10/Materials | Discovered new exit (range 11) 527 | -10/Materials | Entered Mines 567 | -10/Mines | Assembled infested the area 664 | -10/Mines | Discovered new exit (range 15) 805 | -10/Mines | Core integrity fell below 50% 899 | -10/Mines | Build established: Scavenger-Mutant 917 | -10/Mines | Discovered new exit (range 5) 922 | -10/Mines | Entered Exiles 952 | -10/Exiles | Met 8R-AWN 974 | -10/Exiles | Met EX-HEX 1017 | -10/Exiles | Met EX-DEC 1040 | -10/Exiles | Learned location of Zion (-6) 1077 | -10/Exiles | Met EX-BIN 1202 | -10/Exiles | Discovered new exit (range 10) 1350 | -10/Exiles | Discovered new exit (range 15) 1408 | -10/Exiles | Entered Mines 1419 | -9/Mines | Core integrity fell below 20% 1432 | -9/Mines | Destroyed by S-10 Pest with Light Assault Rifle Last Messages --------------- 01417_ G-34 Mercenary destroyed. 01419_ S-10 Pest overheating. 01420_ S-10 Pest suffers critical hit (Burn). 01420_ Lgt. Ion Engine destroyed. 01420_ Critical hit (Burn: +37). 01421_ S-10 Pest overheating. 01422_ Aluminum Leg broken. 01422_ Overheating: Short circuit. 01422_ S-10 Pest heat damages core (-2). 01422_ S-10 Pest overheating. 01422_ G-47 Trooper destroyed. 01422_ S-10 Pest destroyed. 01428_ YL-CCH(g): "Mission, incomplete...*fzzt*" 01428_ YL-CCH(g) destroyed. 01429_ Overheating: System interference. 01429_ Lgt. Assault Rifle temporarily disabled. 01429_ Aluminum Leg destroyed. 01430_ Broken Aluminum Leg destroyed. 01430_ Critical hit (Destroy). 01430_ Lgt. Assault Rifle destroyed. Map ----- +----------------------------------------------------+ | ????????????????????????????????? | | ????????????????????????????????? | | ????????????????????????????????? | | ????????????????????????????????? | | ????????????????????????????????? | | ????????????????????????????????? | | ????????????????????????????????? | | ????????????????????????????????? | | ????????????????????????????????? | | ????????????????????????????????? | | ????????????????????????????????? | | ????????????????????????????????? | | ????????????????????????????????? | | ????????????????????????????????? | | ????????????????????????????????? | | ????????????????????????????????? | | ????????????????????????????????? | | ????????????????????????????????? | | ????????????????????????????????? | | ????????????#???????????????????? | | ??????????? #???????????????????? | | ??????????# #######?????????????? | | ?????????#s! ??????????????? | | ???????##[s%% ?????????????????? | | ????####*!=%#???????????????????? | | ???# =*%@%*=#???????????????????? | | ???# *%=[g%##???????????????????? | | ???## ######????????????????????? | | ????#???????????????????????????? | | ????????????????????????????????? | | ????????????????????????????????? | | ????????????????????????????????? | | ????????????????????????????????? | | ????????????????????????????????? | | | | | | | | | | | | | | | | | | | | | | | | | | | | | | | | | +----------------------------------------------------+ Best States ------------- Heat Dissipation 35 Energy Generation 10 Energy Capacity 250 Matter Stores 300 Matter Capacity 300 Sight Range 16 Terrain Scan Density 10 Evasion (%) 55 Item Schematics ----------------- None Robot Schematics ------------------ None Fabricated ------------ Nothing Repaired ---------- Nothing Studied --------- None Alien Tech Used ----------------- None Achievements -------------- None Challenges ------------ None Game ------ Seed TerrorOvertunedComputer Manual? 0 Play Time 00:13:33 Cumulative 192.6 hours Start 2026.09.10 @ 17:40:29 End 2026.09.10 @ 17:54:28 Sessions 1 Manual Loads 0 Difficulty Rogue Special Mode None Game No. 103 Rogue 99 Adventurer 2 Explorer 2 Win Type - Total 2 Types 1/0/1/0/0/0/0/0/0/0 Lore% 67 Gallery% 62 Achievement% 43 Wizard Run 0 Options --------- Layout 0 ASCII 0 Keyboard 1 Movement Arrows Keybinds 0 Fullscreen 2 Font 18/Terminus Map View 76x50 Zoom Use 0% Tactical HUD 1 Map Filters NONE Filters NONE Steam 1 RUN: 7c382ac7-b1c8-4506-938f-c268e8fba80b